bitfinex/quotes_SOLUSD_20230103
["timestamp","ask_amount","ask_price","bid_price","bid_amount"]
[1672753179613,30.0,11.941,11.932,12.65987586]
[1672753179827,30.0,11.941,11.933,12.65987586]
[1672753180338,30.0,11.941,11.929,30.0]
[1672753180339,30.0,11.941,11.925,30.0]
[1672753180548,62.87,11.942,11.934,10.19691187]
[1672753180757,23.7546,11.943,11.934,10.19691187]
[1672753181712,23.7546,11.943,11.931,342.0]
[1672753182140,23.7546,11.943,11.932,12.65987586]
[1672753183940,23.7546,11.943,11.931,342.0]
[1672753184344,23.7546,11.943,11.931,354.65987586]
[1672753184883,53.7546,11.943,11.931,12.65987586]
[1672753185196,116.6246,11.943,11.921,30.0]
[1672753185426,30.0,11.942,11.922,20.0]
[1672753185602,30.0,11.942,11.924,30.0]
[1672753186144,30.0,11.94,11.925,20.0]
[1672753186353,19.55905327,11.939,11.919,32.55101136]
[1672753186548,19.55905327,11.939,11.917,47.18484774]
[1672753186549,30.0,11.938,11.92,93.72]
[1672753187190,30.0,11.938,11.921,20.0]
[1672753187816,30.0,11.938,11.922,42.65987586]
[1672753188036,62.88,11.941,11.926,30.0]
[1672753188356,62.88,11.941,11.927,20.0]
[1672753190130,26.5770387,11.939,11.928,20.0]
[1672753190455,26.5770387,11.94,11.928,20.0]
[1672753190645,26.5770387,11.94,11.925,12.65987586]
[1672753191064,26.5770387,11.94,11.929,30.0]
[1672753191288,62.88,11.941,11.93,20.0]
[1672753192993,85.531,11.942,11.93,20.0]
[1672753193287,196.41450825,11.942,11.93,20.0]
[1672753193604,196.41450825,11.942,11.93,32.78]
[1672753193817,196.41450825,11.942,11.931,30.0]
[1672753194435,85.531,11.942,11.931,30.0]
[1672753194635,22.661,11.942,11.931,30.0]
[1672753194845,22.661,11.942,11.931,42.65987586]
[1672753196335,22.661,11.942,11.931,30.0]
[1672753197384,22.661,11.942,11.931,42.65987586]
[1672753199687,22.661,11.942,11.921,30.0]
[1672753199688,30.0,11.941,11.921,30.0]
[1672753199900,18.4634853,11.94,11.93,12.69]
[1672753200110,23.1138,11.941,11.93,12.69]
[1672753200320,62.84,11.948,11.93,64.0]
[1672753200542,265.05717858,11.949,11.93,76.65987586]
[1672753200741,265.05717858,11.949,11.93,376.0]
[1672753200958,62.84,11.948,11.931,30.0]
[1672753201161,253.2997,11.948,11.931,30.0]
[1672753201805,68.4825,11.947,11.931,30.0]
[1672753202021,92.85,11.946,11.912,30.0]
[1672753202323,26.83325401,11.945,11.93,63.8]
[1672753202535,75.31575401,11.945,11.931,30.0]
[1672753203068,48.4825,11.944,11.931,30.0]
[1672753203272,62.85,11.947,11.931,30.0]
[1672753203593,62.85,11.947,11.933,30.0]
[1672753203785,182.3611,11.948,11.933,30.0]
[1672753203990,182.3611,11.948,11.934,20.0]
[1672753207038,182.3611,11.948,11.935,5.138]
[1672753207367,182.3611,11.948,11.937,30.0]
[1672753207580,182.3611,11.948,11.938,20.0]
[1672753208302,53.1988,11.947,11.933,30.0]
[1672753208514,110.1768,11.946,11.933,30.0]
[1672753209268,47.3268,11.945,11.933,30.0]
[1672753209578,62.86,11.944,11.933,30.0]
[1672753209789,110.1868,11.944,11.933,30.0]
[1672753209998,47.3268,11.944,11.933,30.0]
[1672753210502,138.2349,11.943,11.933,30.0]
[1672753211050,201.1049,11.943,11.933,30.0]
[1672753211264,24.5934,11.942,11.933,30.0]
[1672753211982,24.5934,11.941,11.933,30.0]
[1672753221367,24.5934,11.941,11.934,15.5]
[1672753221686,62.8,11.955,11.935,66.03403232]
[1672753221894,190.46,11.954,11.94,12.75]
[1672753222090,62.84,11.948,11.937,30.0]
[1672753222300,62.84,11.948,11.938,20.0]
[1672753222717,62.81,11.953,11.94,12.74]
[1672753222932,116.3638,11.948,11.941,21.0]
[1672753223355,116.3638,11.948,11.941,30.0]
[1672753223565,139.1067,11.948,11.941,30.0]
[1672753224519,139.1067,11.948,11.94,82.22403232]
[1672753224735,139.1067,11.948,11.94,12.74]
[1672753226417,30.0,11.947,11.938,20.0]
[1672753226624,62.85,11.946,11.937,20.0]
[1672753227163,62.85,11.946,11.93,43.76]
[1672753227350,30.0,11.944,11.93,12.69]
[1672753227562,223.9745,11.943,11.93,12.69]
[1672753227784,223.9745,11.943,11.931,30.0]
[1672753228000,223.9745,11.943,11.931,60.78]
[1672753228197,45.8314,11.942,11.931,60.78]
[1672753228827,23.3196,11.941,11.931,60.78]
[1672753229361,62.84,11.948,11.931,60.78]
[1672753229575,199.1392,11.948,11.933,30.0]
[1672753229887,199.1392,11.948,11.935,30.0]
[1672753230101,23.3196,11.947,11.936,53.06]
[1672753230505,23.3196,11.947,11.937,30.0]
[1672753230819,23.3196,11.947,11.938,20.0]
[1672753232072,23.3196,11.947,11.939,30.0]
[1672753232518,23.3196,11.947,11.938,56.14]
[1672753232918,23.3196,11.947,11.938,20.0]
[1672753233132,23.3196,11.947,11.937,20.0]
[1672753233467,23.3196,11.947,11.938,30.0]
[1672753233775,23.3196,11.947,11.939,68.85248259]
[1672753233989,23.3196,11.947,11.939,34.05248259]
[1672753239010,23.3196,11.947,11.94,30.0]
[1672753239231,23.3196,11.947,11.94,42.75]
[1672753239660,23.3196,11.947,11.94,82.25295564]
[1672753240489,23.3196,11.947,11.94,56.79295564]
[1672753240816,62.8,11.955,11.94,56.79295564]
[1672753240817,62.8,11.955,11.941,12.65987586]
[1672753241027,43.16336008,11.967,11.942,35.36237741]
[1672753241028,30.0,11.957,11.942,35.36237741]
[1672753241342,86.5809,11.956,11.942,30.0]
[1672753241752,48.0177,11.955,11.942,30.0]
[1672753241964,62.81,11.954,11.942,30.0]
[1672753242173,162.753,11.953,11.94,83.58295564]
[1672753242399,62.82,11.952,11.94,83.58295564]
[1672753242600,48.0177,11.951,11.94,83.58295564]
[1672753243002,114.7353,11.953,11.941,12.65987586]
[1672753243326,114.7353,11.953,11.943,30.0]
[1672753243541,114.7353,11.953,11.945,30.0]
[1672753243751,114.7353,11.953,11.946,20.0]
[1672753246503,114.7353,11.953,11.947,35.69]
[1672753246699,114.7353,11.953,11.948,50.0]
[1672753247742,114.7353,11.953,11.949,13.95728481]
[1672753254289,114.7353,11.953,11.95,30.0]
[1672753254696,114.7353,11.953,11.95,43.94777379]
[1672753254912,114.7353,11.953,11.95,13.94777379]
[1672753255564,114.7353,11.953,11.948,50.0]
[1672753255985,114.7353,11.953,11.948,20.0]
[1672753256175,114.7353,11.953,11.945,73.77694289]
[1672753256176,114.7353,11.953,11.946,20.0]
[1672753257540,114.7353,11.953,11.944,20.0]
[1672753258064,114.7353,11.953,11.944,30.0]
[1672753258291,114.7353,11.953,11.945,20.0]
[1672753258836,114.7353,11.953,11.945,33.9953448]
[1672753259008,62.82,11.952,11.945,33.9953448]
[1672753259223,30.0,11.951,11.945,13.9953448]
[1672753259429,62.83,11.95,11.945,13.9953448]
[1672753259644,62.83,11.95,11.94,12.82]
[1672753259861,24.767,11.949,11.94,12.82]
[1672753260481,24.767,11.948,11.94,12.82]
[1672753260924,24.767,11.948,11.941,30.0]
[1672753265750,62.82,11.952,11.941,30.0]
[1672753266075,114.7353,11.953,11.943,30.0]
[1672753266289,114.7353,11.953,11.944,82.86]
[1672753266497,114.7353,11.953,11.944,20.0]
[1672753267756,114.7353,11.953,11.943,20.0]
[1672753268915,114.7353,11.953,11.944,30.0]
[1672753269107,114.7353,11.953,11.945,20.0]
[1672753269964,177.5453,11.953,11.945,20.0]
[1672753270172,114.7353,11.953,11.945,20.0]
[1672753270929,177.5453,11.953,11.945,20.0]
[1672753271746,177.5453,11.953,11.944,30.0]
[1672753271965,177.5453,11.953,11.945,20.0]
[1672753272575,177.5453,11.953,11.942,62.87]
[1672753272576,177.5453,11.953,11.943,20.0]
[1672753274270,177.5453,11.953,11.942,20.0]
[1672753276587,30.0,11.952,11.937,62.9]
[1672753276801,30.0,11.95,11.938,20.0]
[1672753277005,110.2005,11.949,11.938,20.0]
[1672753277420,110.2005,11.949,11.937,30.0]
[1672753277628,166.0789,11.948,11.937,30.0]
[1672753278253,23.0549,11.947,11.937,30.0]
[1672753278469,23.0549,11.947,11.936,62.9]
[1672753278685,23.0549,11.946,11.936,62.9]
[1672753278886,23.0549,11.946,11.937,20.0]
[1672753279324,23.0549,11.945,11.937,20.0]
[1672753279731,23.0549,11.945,11.936,20.0]
[1672753280066,23.0549,11.944,11.937,30.0]
[1672753280279,23.0549,11.944,11.938,20.0]
[1672753287027,23.0549,11.944,11.937,20.0]
[1672753290382,23.0549,11.944,11.936,30.0]
[1672753290598,23.0549,11.944,11.937,20.0]
[1672753295643,23.0549,11.944,11.935,20.0]
[1672753295857,22.9249,11.943,11.935,20.0]
[1672753298037,22.9249,11.943,11.934,20.0]
[1672753298273,24.5191,11.942,11.935,62.91]
[1672753298467,24.5191,11.942,11.936,20.0]
[1672753299001,54.5191,11.942,11.936,20.0]
[1672753299214,54.5191,11.942,11.933,20.0]
[1672753299408,54.5191,11.942,11.932,20.0]
[1672753299619,54.5191,11.942,11.933,62.92]
[1672753299962,54.5191,11.942,11.934,20.0]
[1672753300564,54.5191,11.942,11.932,20.0]
[1672753300773,54.5191,11.942,11.933,62.92]
[1672753300982,24.5191,11.942,11.934,20.0]
[1672753301210,24.5191,11.942,11.935,92.91]
[1672753301408,24.5191,11.942,11.936,20.0]
[1672753302141,24.5191,11.942,11.935,82.91]
[1672753302793,24.5191,11.942,11.937,12.89846107]
[1672753303194,24.5191,11.942,11.938,20.0]
[1672753303945,54.5191,11.942,11.938,20.0]
[1672753304590,54.5191,11.942,11.939,12.87940237]
[1672753305633,117.3891,11.942,11.939,12.87940237]
[1672753305952,54.5191,11.942,11.939,12.87940237]
[1672753309730,92.87,11.941,11.922,17.294]
[1672753309925,42.77,11.94,11.922,17.294]
[1672753310258,167.98174025,11.939,11.922,73.264]
[1672753310655,30.0,11.937,11.922,73.264]
[1672753310866,143.92304025,11.936,11.922,55.97]
[1672753311085,30.0,11.935,11.922,55.97]
[1672753311321,145.10984025,11.934,11.922,55.97]
[1672753311624,30.0,11.933,11.921,52.73]
[1672753311844,34.73944025,11.932,11.921,52.73]
[1672753312148,34.73944025,11.932,11.922,20.0]
[1672753312338,30.0,11.931,11.922,20.0]
[1672753312549,34.73944025,11.93,11.922,20.0]
[1672753313412,30.0,11.931,11.922,20.0]
[1672753313626,30.0,11.931,11.923,9.80376563]
[1672753313823,30.0,11.931,11.924,20.0]
[1672753315293,3.65289573,11.93,11.924,20.0]
[1672753315822,30.0,11.931,11.924,20.0]
[1672753316143,0.97479681,11.93,11.924,20.0]
[1672753316664,0.97479681,11.93,11.925,9.78466215]
[1672753317070,62.94,11.929,11.925,9.78466215]
[1672753317279,10.13802322,11.928,11.925,9.78466215]
[1672753317494,92.95,11.927,11.925,9.78466215]
[1672753317706,30.0,11.925,11.913,48.15]
[1672753317914,30.0,11.923,11.913,48.15]
[1672753318129,36.3249802,11.922,11.912,12.65987586]
[1672753318458,36.3249802,11.922,11.913,43.68]
[1672753318673,36.3249802,11.922,11.914,9.88981064]
[1672753318987,23.3665,11.922,11.915,47.54]
[1672753319185,23.3665,11.922,11.916,20.0]
[1672753319385,23.3665,11.922,11.917,50.48]
[1672753319596,23.3665,11.922,11.918,20.0]
[1672753320256,23.3665,11.922,11.916,20.0]
[1672753320448,23.3665,11.922,11.917,53.76]
[1672753320663,23.3665,11.922,11.918,20.0]
[1672753321077,23.3665,11.922,11.919,57.68]
[1672753321289,23.3665,11.922,11.92,20.0]
[1672753321503,24.6334,11.923,11.92,20.0]
[1672753323179,62.92,11.932,11.921,62.98]
[1672753323392,112.3717,11.932,11.921,62.98]
[1672753323707,112.3717,11.932,11.922,20.0]
[1672753323919,23.7676,11.931,11.922,20.0]
[1672753324363,53.7676,11.931,11.922,20.0]
[1672753325614,53.7676,11.931,11.923,9.80376563]
[1672753326133,53.7676,11.931,11.924,20.0]
[1672753326349,30.0,11.93,11.924,20.0]
[1672753329716,30.0,11.93,11.925,9.78466215]
[1672753330120,30.0,11.93,11.926,20.0]
[1672753333607,92.93,11.93,11.925,9.78466215]
[1672753333806,92.93,11.93,11.927,9.76556508]
[1672753334240,92.93,11.93,11.92,18.155]
[1672753334459,92.93,11.93,11.916,58.4]
[1672753334667,30.0,11.928,11.917,20.0]
[1672753334982,92.94,11.928,11.916,58.4]
[1672753335201,30.0,11.926,11.916,58.4]
[1672753335415,23.1626,11.925,11.916,58.4]
[1672753336148,23.1626,11.924,11.916,58.4]
[1672753338132,23.1626,11.924,11.917,20.0]
[1672753338862,23.1626,11.924,11.914,20.0]
[1672753339190,46.8935,11.923,11.915,53.91]
[1672753339397,46.8935,11.923,11.916,20.0]
[1672753339599,46.8935,11.923,11.917,55.72]
[1672753339810,46.8935,11.923,11.918,20.0]
[1672753340452,46.8935,11.923,11.915,20.0]
[1672753340664,23.8603,11.922,11.916,58.79]
[1672753340992,23.8603,11.922,11.917,20.0]
[1672753341602,23.8603,11.922,11.915,20.0]
[1672753341813,23.8603,11.922,11.916,62.61]
[1672753342033,23.8603,11.922,11.917,20.0]
[1672753342767,23.8603,11.922,11.915,20.0]
[1672753342956,23.8603,11.922,11.916,63.01]
[1672753343168,23.8603,11.922,11.917,20.0]
[1672753343590,23.8603,11.922,11.915,50.0]
[1672753343913,23.8603,11.922,11.916,63.01]
[1672753344116,23.8603,11.922,11.917,20.0]
[1672753346244,23.8603,11.922,11.918,30.0]
[1672753346455,127.72,11.95,11.92,10.34240523]
[1672753346456,42.84,11.94,11.92,10.34240523]
[1672753346649,42.84,11.94,11.922,10.34240523]
[1672753346860,109.014,11.938,11.924,10.34240523]
[1672753347078,62.9,11.937,11.926,10.34240523]
[1672753347295,62.9,11.937,11.927,20.0]
[1672753347503,62.9,11.937,11.925,20.0]
[1672753347717,62.9,11.937,11.926,1.37519225]
[1672753347931,62.9,11.937,11.925,42.18088213]
[1672753348147,62.9,11.937,11.926,20.0]
[1672753350138,62.9,11.937,11.927,30.0]
[1672753350349,62.9,11.937,11.928,20.0]
[1672753351936,87.7106,11.937,11.928,20.0]
[1672753352658,87.7106,11.937,11.927,30.0]
[1672753352862,23.8989,11.936,11.928,20.0]
[1672753353914,23.8989,11.936,11.93,12.77]
[1672753354114,23.8989,11.936,11.928,20.0]
[1672753355090,23.8989,11.936,11.926,20.0]
[1672753355276,23.8989,11.935,11.927,30.0]
[1672753355491,23.8989,11.935,11.928,20.0]
[1672753356544,23.8989,11.935,11.927,20.0]
[1672753356759,23.7413,11.934,11.927,20.0]
[1672753369071,23.7413,11.934,11.928,30.0]
[1672753369399,23.7413,11.934,11.929,20.0]
[1672753370877,23.7413,11.934,11.927,20.0]
[1672753371276,23.7413,11.934,11.927,87.65351654]
[1672753371488,23.7413,11.934,11.928,104.81026298]
[1672753371707,23.7413,11.934,11.929,20.0]
[1672753372340,23.7413,11.934,11.929,124.81026298]
[1672753376641,23.7413,11.934,11.93,30.0]
[1672753376846,23.7413,11.934,11.929,166.99114511]
[1672753377162,23.7413,11.934,11.931,104.81026298]
[1672753381178,23.7413,11.934,11.929,62.18088213]
[1672753383074,62.87,11.941,11.93,55.5]
[1672753383265,228.392,11.944,11.931,20.0]
[1672753383592,165.532,11.944,11.933,30.0]
[1672753383811,165.532,11.944,11.934,36.06225043]
[1672753384114,86.8147,11.943,11.936,17.25796044]
[1672753384330,86.8147,11.943,11.938,17.25796044]
[1672753384540,86.8147,11.943,11.94,17.25796044]
[1672753384950,23.9547,11.943,11.94,17.25796044]
[1672753388197,23.9547,11.943,11.939,20.0]
[1672753388407,23.9547,11.943,11.938,17.25796044]
[1672753388638,23.9547,11.943,11.94,17.25796044]
[1672753393153,23.9547,11.943,11.939,20.0]
[1672753393363,23.9547,11.943,11.939,312.0]
[1672753393569,23.9547,11.943,11.94,19.99781499]
[1672753393779,23.9547,11.943,11.94,39.99781499]
[1672753420695,53.9547,11.943,11.94,39.99781499]
[1672753420903,53.9547,11.943,11.94,20.0]
[1672753424585,53.9547,11.943,11.937,20.0]
[1672753424986,53.9547,11.943,11.937,62.17069772]
[1672753426998,53.9547,11.943,11.937,374.17069772]
[1672753427215,53.9547,11.943,11.938,6.51574651]
[1672753427401,53.9547,11.943,11.939,20.0]
[1672753427613,53.9547,11.943,11.94,6.51574651]
[1672753428345,53.9547,11.943,11.939,20.0]
[1672753428559,53.9547,11.943,11.938,20.0]
[1672753431093,23.9547,11.943,11.938,20.0]
[1672753431325,23.9547,11.943,11.939,1.52881743]
[1672753431829,23.9547,11.943,11.938,20.0]
[1672753434670,23.9547,11.943,11.938,332.0]
[1672753434884,23.9547,11.943,11.939,2.80694927]
[1672753440045,23.9547,11.943,11.938,332.0]
[1672753440234,23.9547,11.943,11.938,20.0]
[1672753440444,23.9547,11.943,11.939,45.44427106]
[1672753440660,23.9547,11.943,11.94,20.0]
[1672753441093,23.9547,11.943,11.94,65.44427106]
[1672753443193,23.9547,11.943,11.94,377.44427106]
[1672753447418,23.9547,11.943,11.941,1.9822424]
[1672753447603,23.9547,11.943,11.94,377.44427106]
[1672753449172,23.9547,11.943,11.941,1.93158699]
[1672753449930,141.5773,11.944,11.94,377.44427106]
[1672753451074,141.5773,11.944,11.941,4.78724]
[1672753452992,141.5773,11.944,11.94,65.44427106]
[1672753461916,141.5773,11.944,11.94,135.82140949]
[1672753464653,141.5773,11.944,11.94,148.48128535]
[1672753465055,62.82,11.952,11.941,30.0]
[1672753465265,136.2303,11.953,11.942,76.31561479]
[1672753465476,62.82,11.952,11.942,208.82170014]
[1672753465686,199.0403,11.953,11.943,119.84620949]
[1672753465902,199.0403,11.953,11.944,20.0]
[1672753466116,199.0403,11.953,11.944,69.46907106]
[1672753466437,199.0403,11.953,11.945,49.46907106]
[1672753466635,136.2303,11.953,11.946,20.0]
[1672753466835,136.2303,11.953,11.946,90.37713843]
[1672753467047,136.2303,11.953,11.946,139.84620949]
[1672753467265,136.2303,11.953,11.946,152.50608535]
[1672753468228,136.2303,11.953,11.946,139.84620949]
[1672753468626,136.2303,11.953,11.946,69.46907106]
[1672753468841,136.2303,11.953,11.947,70.37713843]
[1672753469042,136.2303,11.953,11.947,421.55713843]
[1672753469256,136.2303,11.953,11.948,86.00954011]
[1672753469475,136.2303,11.953,11.948,156.38667854]
[1672753469675,136.2303,11.953,11.949,49.46907106]
[1672753469887,136.2303,11.953,11.95,16.54046905]
[1672753470200,136.2303,11.953,11.951,49.46907106]
[1672753470410,63.16336008,11.979,11.954,27.53945017]
[1672753470620,63.16336008,11.979,11.956,20.08791945]
[1672753470621,30.0,11.976,11.956,20.08791945]
[1672753470842,62.74,11.966,11.958,20.08791945]
[1672753471060,62.74,11.966,11.952,70.37713843]
[1672753471061,30.0,11.965,11.952,49.46907106]
[1672753471369,30.0,11.963,11.947,376.74380509]
[1672753471592,62.76,11.962,11.948,69.46907106]
[1672753471987,30.0,11.961,11.948,69.46907106]
[1672753472197,62.77,11.96,11.948,134.21287615]
[1672753473484,62.77,11.96,11.948,156.95287615]
[1672753473668,30.0,11.959,11.948,156.95287615]
[1672753473879,62.79,11.958,11.948,69.46907106]
[1672753474089,30.0,11.957,11.948,69.46907106]
[1672753474300,62.8,11.956,11.948,69.46907106]
[1672753475666,30.0,11.955,11.948,69.46907106]
[1672753475991,62.81,11.954,11.948,69.46907106]
[1672753476199,62.8,11.955,11.948,69.46907106]
[1672753479362,22.5836,11.956,11.948,69.46907106]
[1672753481348,22.5836,11.956,11.948,134.21287615]
[1672753481565,22.5836,11.956,11.949,49.46387106]
[1672753485993,30.0,11.955,11.949,49.46387106]
[1672753495551,30.0,11.955,11.948,20.0]
[1672753495778,30.0,11.955,11.946,20.0]
[1672753496092,22.5328,11.954,11.946,20.0]
[1672753497443,92.81,11.953,11.946,20.0]
[1672753498186,92.81,11.953,11.931,30.0]
[1672753498383,30.0,11.951,11.935,24.1033]
[1672753498595,30.0,11.951,11.938,12.65987586]
[1672753498596,30.0,11.949,11.938,12.65987586]
[1672753498811,86.1201,11.948,11.939,20.0]
[1672753499016,23.2801,11.948,11.938,12.65987586]
[1672753499235,23.2801,11.948,11.939,12.65987586]
[1672753499445,23.2801,11.947,11.939,12.65987586]
[1672753502725,23.2801,11.947,11.939,68.81561691]
[1672753503144,23.2801,11.947,11.94,12.77]
[1672753503555,23.2801,11.947,11.941,12.65987586]
[1672753503983,62.82,11.951,11.941,12.65987586]
[1672753504185,85.4832,11.954,11.943,30.0]
[1672753504396,22.6732,11.954,11.944,20.0]
[1672753504714,22.6732,11.954,11.944,32.65987586]
[1672753505035,22.6732,11.954,11.945,12.65987586]
[1672753505227,22.6732,11.954,11.946,20.0]
[1672753505643,22.6732,11.954,11.946,32.65987586]
[1672753506280,22.6732,11.954,11.946,20.0]
[1672753506519,22.6732,11.954,11.945,12.65987586]
[1672753506706,22.6732,11.954,11.946,20.0]
[1672753507341,22.6732,11.954,11.946,32.65987586]
[1672753508511,22.6732,11.954,11.946,20.0]
[1672753508698,52.6732,11.954,11.944,32.65987586]
[1672753509230,52.6732,11.954,11.944,20.0]
[1672753509643,62.81,11.953,11.944,20.0]
[1672753510076,115.4832,11.954,11.944,20.0]
[1672753510498,115.4832,11.954,11.944,32.65987586]
[1672753512074,115.4832,11.954,11.944,20.0]
[1672753512475,30.0,11.953,11.944,20.0]
[1672753512691,62.82,11.952,11.944,20.0]
[1672753515234,92.81,11.953,11.944,20.0]
[1672753516160,92.81,11.953,11.943,20.0]
[1672753518384,92.81,11.953,11.944,12.65987586]
[1672753518575,92.81,11.953,11.945,20.0]
[1672753519543,92.81,11.953,11.931,96.66079329]
[1672753519737,30.0,11.951,11.936,20.0]
[1672753519945,30.0,11.951,11.939,12.65987586]
[1672753519946,62.83,11.95,11.939,12.65987586]
[1672753520273,30.0,11.949,11.939,12.65987586]
[1672753520471,86.0833,11.948,11.939,12.65987586]
[1672753520680,86.0833,11.948,11.939,55.65434348]
[1672753522164,23.2433,11.948,11.939,55.65434348]
[1672753522577,23.2433,11.948,11.939,367.65434348]
[1672753526882,116.709,11.95,11.941,30.0]
[1672753527086,116.709,11.95,11.942,20.0]
[1672753527297,116.709,11.95,11.942,32.65987586]
[1672753527510,116.709,11.95,11.943,12.65987586]
[1672753527737,116.709,11.95,11.944,20.0]
[1672753528263,116.709,11.95,11.944,32.65987586]
[1672753528792,30.0,11.953,11.944,20.0]
[1672753528989,30.0,11.953,11.942,43.8093]
[1672753529205,30.0,11.953,11.944,12.65987586]
[1672753529398,30.0,11.953,11.945,20.0]
[1672753529818,30.0,11.953,11.945,32.65987586]
[1672753530876,30.0,11.953,11.945,20.0]
[1672753531082,30.0,11.953,11.943,20.0]
[1672753531609,30.0,11.953,11.943,32.65987586]
[1672753532246,86.5482,11.954,11.943,32.65987586]
[1672753533838,86.5482,11.954,11.944,12.77148015]
[1672753534068,86.5482,11.954,11.945,20.0]
[1672753534884,86.5482,11.954,11.946,12.65987586]
[1672753535076,86.5482,11.954,11.947,20.0]
[1672753535713,86.5482,11.954,11.945,20.0]
[1672753536669,86.5482,11.954,11.945,32.65987586]
[1672753537828,86.5482,11.954,11.946,12.75177715]
[1672753538052,30.0,11.953,11.946,12.75177715]
[1672753538359,86.5482,11.954,11.947,20.0]
[1672753541638,30.0,11.953,11.947,20.0]
[1672753541961,30.0,11.953,11.948,12.73208075]
[1672753542145,86.5482,11.954,11.949,20.0]
[1672753542350,23.7382,11.954,11.949,332.0]
[1672753542999,23.7382,11.954,11.949,344.65987586]
[1672753543430,23.7382,11.954,11.949,32.65987586]
[1672753544146,23.7382,11.954,11.949,81.04260879]
[1672753544776,23.7382,11.954,11.949,143.83629828]
[1672753545310,23.7382,11.954,11.949,131.17642242]
[1672753545842,23.7382,11.954,11.95,12.71239095]
[1672753546157,23.7382,11.954,11.95,25.37226681]
[1672753546476,23.7382,11.954,11.95,337.37226681]
[1672753547939,23.7382,11.954,11.95,12.71239095]
[1672753550999,23.7382,11.954,11.95,324.71239095]
[1672753552060,23.7382,11.954,11.95,12.71239095]
[1672753555006,108.0446,11.956,11.95,12.71239095]
[1672753555007,62.79,11.958,11.95,324.71239095]
[1672753555329,62.77,11.961,11.951,50.0]
[1672753555531,62.76,11.962,11.951,50.0]
[1672753555851,62.76,11.962,11.952,61.04260879]
[1672753556042,62.76,11.962,11.953,20.0]
[1672753556252,62.76,11.962,11.953,81.04260879]
[1672753556566,62.76,11.962,11.953,68.38273293]
[1672753557218,30.0,11.961,11.953,68.38273293]
[1672753558047,62.76,11.962,11.954,30.0]
[1672753558257,62.76,11.962,11.955,20.0]
[1672753559102,87.6717,11.963,11.955,20.0]
[1672753559733,87.6717,11.963,11.956,12.65336106]
[1672753559934,87.6717,11.963,11.957,20.0]
[1672753563942,87.6717,11.963,11.958,12.63369759]
[1672753564148,87.6717,11.963,11.959,20.0]
[1672753566040,24.9117,11.963,11.959,20.0]
[1672753567828,54.9117,11.963,11.96,12.6140407]
[1672753568021,117.6717,11.963,11.96,12.6140407]
[1672753568233,92.76,11.963,11.96,12.6140407]
[1672753568970,92.76,11.963,11.959,20.0]
[1672753569180,92.76,11.963,11.955,20.0]
[1672753569406,115.9942,11.963,11.955,20.0]
[1672753570039,85.9942,11.963,11.955,20.0]
[1672753570236,23.2342,11.963,11.955,20.0]
[1672753570436,85.9942,11.963,11.955,20.0]
[1672753570882,85.9942,11.963,11.955,332.0]